[Event "HUN-ch U8-U18 2019"]
[Site "Balatonlelle"]
[Date "2019.06.25"]
[Round "6.15"]
[White "Bilku, Andras"]
[Black "Ujpal, Balint"]
[Result "1-0"]
[ECO "D36"]
[WhiteElo "1907"]
[BlackElo "1741"]
[Annotator "NA"]
[PlyCount "123"]
[EventDate "2019.06.21"]
[EventType "swiss"]
[EventCountry "HUN"]
[SourceTitle "playchess.com"]
[Source "ChessBase"]
[SourceQuality "1"]
[TimeControl "40/5400+30:1800+30"]

1. d4 {[%emt 0:00:01]} d5 {[%emt 0:00:07]} 2. c4 {[%emt 0:00:02]} e6 {[%emt 0:00:29]} 3. Nc3 {[%emt 0:00:07]} Nf6 {[%emt 0:00:28]} 4. cxd5 {[%emt 0:00:05]} exd5 {[%emt 0:00:13]} 5. Bg5 {[%emt 0:00:04]} c6 {[%emt 0:01:12]} 6. Qc2 {[%emt 0:00:07]} Be7 {[%emt 0:00:34]} 7. e3 {[%emt 0:00:04]} h6 {[%emt 0:02:20]} 8. Bh4 {[%emt 0:00:05]} O-O {[%emt 0:00:47]} 9. Bd3 {[%emt 0:00:05]} Re8 {[%emt 0:03:59]} 10. Nf3 {[%emt 0:00:15]} Ne4 {[%emt 0:04:13]} 11. Bxe7 {[%emt 0:03:04]} Qxe7 {[%emt 0:00:28]} 12. Bxe4 {[%emt 0:03:49]} dxe4 {[%emt 0:00:49]} 13. Nd2 {[%emt 0:00:04]} f5 {[%emt 0:09:43]} 14. h3 {[%emt 0:01:01]} Nd7 {[%emt 0:09:07]} 15. O-O-O {[%emt 0:00:26]} Nf6 {[%emt 0:00:49]} 16. Nc4 {[%emt 0:01:29]} Be6 {[%emt 0:04:34]} 17. Ne5 {[%emt 0:02:47]} Nd7 {[%emt 0:01:16]} 18. Nxd7 {[%emt 0:00:29]} Qxd7 {[%emt 0:02:33]} 19. Kb1 {[%emt 0:00:09]} Qf7 {[%emt 0:02:40]} 20. Rhg1 {[%emt 0:00:19]} Bc4 {[%emt 0:05:07]} 21. Ka1 {[%emt 0:00:15]} b5 {[%emt 0:02:02]} 22. b3 {[%emt 0:00:32]} Bd3 {[%emt 0:01:45]} 23. Qb2 {[%emt 0:00:49]} a5 {[%emt 0:02:18]} 24. Rd2 {[%emt 0:02:11]} Reb8 {[%emt 0:01:52]} 25. g4 {[%emt 0:00:20]} a4 {[%emt 0:01:58]} 26. b4 {[%emt 0:00:05]} f4 {[%emt 0:03:31]} 27. a3 {[%emt 0:00:31]} fxe3 {[%emt 0:02:58]} 28. fxe3 {[%emt 0:00:07]} Qf3 {[%emt 0:00:57]} 29. Nd1 {[%emt 0:01:27]} Qxh3 {[%emt 0:02:27]} 30. g5 {[%emt 0:00:07]} Kh7 {[%emt 0:05:09]} 31. gxh6 {[%emt 0:02:31]} gxh6 {[%emt 0:00:33]} 32. Rdg2 {[%emt 0:00:16]} Rg8 {[%emt 0:00:16]} 33. d5 {[%emt 0:02:49]} Rxg2 {[%emt 0:02:05]} 34. Rxg2 {[%emt 0:00:05]} Rg8 {[%emt 0:01:07]} 35. Rxg8 {[%emt 0:01:00]} Kxg8 {[%emt 0:00:09]} 36. dxc6 {[%emt 0:00:58]} Qe6 {[%emt 0:03:19]} 37. c7 {[%emt 0:00:43]} Qg4 {[%emt 0:03:35]} 38. Qd2 {[%emt 0:12:00]} h5 {[%emt 0:04:01]} 39. Nc3 {[%emt 0:00:00]} Qf5 {[%emt 0:00:00]} 40. Kb2 {[%emt 0:00:00]} Qe6 {[%emt 0:00:00]} 41. Ka1 {[%emt 0:23:23]} Kh7 {[%emt 0:20:33]} 42. Qh2 {[%emt 0:04:54]} Qg4 {[%emt 0:05:49]} 43. Qf2 {[%emt 0:01:57]} Kg7 {[%emt 0:01:08]} 44. Qb2 {[%emt 0:07:09]} Kh7 {[%emt 0:01:15]} 45. Qf2 {[%emt 0:02:29]} Kg7 {[%emt 0:02:33]} 46. Kb2 {[%emt 0:01:13]} Qe6 {[%emt 0:00:12]} 47. Qg3+ {[%emt 0:00:42]} Kh7 {[%emt 0:01:00]} 48. Ka1 {[%emt 0:08:08]} Qf5 {[%emt 0:04:25]} 49. Qf4 {[%emt 0:01:42]} Qg6 {[%emt 0:02:58]} 50. Qh2 {[%emt 0:03:12]} Qf5 {[%emt 0:00:27]} 51. Kb2 {[%emt 0:01:01]} Qg4 {[%emt 0:02:08]} 52. Kc1 {[%emt 0:03:38]} Qf5 {[%emt 0:01:52]} 53. Kd2 {[%emt 0:01:20]} Bc4 {[%emt 0:02:29]} 54. Nxe4 {[%emt 0:06:39]} Qd5+ {[%emt 0:04:06]} 55. Ke1 {[%emt 0:00:36]} Qxe4 {[%emt 0:00:09]} 56. Qxh5+ {[%emt 0:00:11]} Kg7 {[%emt 0:00:26]} 57. Qg5+ {[%emt 0:00:30]} Kh7 {[%emt 0:00:37]} 58. c8=Q {[%emt 0:00:43]} Qh1+ {[%emt 0:02:16]} 59. Kd2 {[%emt 0:01:18]} Qh2+ {[%emt 0:01:59]} 60. Kc3 {[%emt 0:00:17]} Qc2+ {[%emt 0:01:10]} 61. Kxc2 {[%emt 0:00:08]} Bd3+ {[%emt 0:00:18]} 62. Kd2 {[%emt 0:00:03]} 1-0

[Event "HUN-ch U8-U18 2019"]
[Site "Balatonlelle"]
[Date "2019.06.25"]
[Round "6.16"]
[White "Kovacs, Gabor Etele"]
[Black "Acs, Marton"]
[Result "1/2-1/2"]
[ECO "C94"]
[WhiteElo "2062"]
[BlackElo "2138"]
[Annotator "NA"]
[PlyCount "35"]
[EventDate "2019.06.21"]
[EventType "swiss"]
[EventCountry "HUN"]
[SourceTitle "playchess.com"]
[Source "ChessBase"]
[SourceQuality "1"]
[TimeControl "40/5400+30:1800+30"]

1. e4 {[%emt 0:00:05]} e5 {[%emt 0:00:13]} 2. Nf3 {[%emt 0:00:25]} Nc6 {[%emt 0:00:09]} 3. Bb5 {[%emt 0:00:17]} a6 {[%emt 0:00:12]} 4. Ba4 {[%emt 0:00:50]} Nf6 {[%emt 0:00:17]} 5. O-O {[%emt 0:00:16]} Be7 {[%emt 0:00:23]} 6. Re1 {[%emt 0:00:18]} b5 {[%emt 0:00:15]} 7. Bb3 {[%emt 0:00:08]} d6 {[%emt 0:00:06]} 8. c3 {[%emt 0:00:18]} O-O {[%emt 0:00:18]} 9. h3 {[%emt 0:00:12]} Nb8 {[%emt 0:00:23]} 10. d3 {[%emt 0:00:32]} Bb7 {[%emt 0:04:45]} 11. Nbd2 {[%emt 0:01:17]} Re8 {[%emt 0:05:56]} 12. Nf1 {[%emt 0:05:18]} Bf8 {[%emt 0:00:29]} 13. Bg5 {[%emt 0:05:49]} h6 {[%emt 0:04:49]} 14. Bh4 {[%emt 0:05:01]} Nbd7 {[%emt 0:04:50]} 15. Ne3 {[%emt 0:03:23]} c6 {[%emt 0:02:17]} 16. Nh2 {[%emt 0:17:07]} g6 {[%emt 0:23:13]} 17. Qf3 {[%emt 0:06:59]} Bg7 {[%emt 0:05:28]} 18. Nhg4 {[%emt 0:07:17]} 1/2-1/2

[Event "HUN-ch U8-U18 2019"]
[Site "Balatonlelle"]
[Date "2019.06.25"]
[Round "6.16"]
[White "Kun, Balint"]
[Black "Kovacs, Patrik Zsolt"]
[Result "1/2-1/2"]
[ECO "B11"]
[WhiteElo "1813"]
[BlackElo "1903"]
[Annotator "NA"]
[PlyCount "50"]
[EventDate "2019.06.21"]
[EventType "swiss"]
[EventCountry "HUN"]
[SourceTitle "playchess.com"]
[Source "ChessBase"]
[SourceQuality "1"]
[TimeControl "40/5400+30:1800+30"]

1. e4 {[%emt 0:00:02]} c6 {[%emt 0:00:06]} 2. Nc3 {[%emt 0:00:05]} d5 {[%emt 0:00:09]} 3. Nf3 {[%emt 0:00:04]} Bg4 {[%emt 0:00:06]} 4. h3 {[%emt 0:00:08]} Bh5 {[%emt 0:00:07]} 5. exd5 {[%emt 0:00:15]} cxd5 {[%emt 0:00:07]} 6. g4 {[%emt 0:00:08]} Bg6 {[%emt 0:00:05]} 7. Ne5 {[%emt 0:00:06]} Nc6 {[%emt 0:00:09]} 8. d4 {[%emt 0:00:04]} e6 {[%emt 0:00:33]} 9. a3 {[%emt 0:03:53]} Bd6 {[%emt 0:00:18]} 10. Nxg6 {[%emt 0:11:33]} hxg6 {[%emt 0:00:10]} 11. Be3 {[%emt 0:01:48]} Nge7 {[%emt 0:04:50]} 12. Qd2 {[%emt 0:01:07]} a6 {[%emt 0:01:57]} 13. Bf4 {[%emt 0:03:43]} Bxf4 {[%emt 0:03:09]} 14. Qxf4 {[%emt 0:00:06]} Qb6 {[%emt 0:00:10]} 15. O-O-O {[%emt 0:02:50]} Rc8 {[%emt 0:07:06]} 16. Na4 {[%emt 0:03:25]} Qc7 {[%emt 0:03:30]} 17. Qxc7 {[%emt 0:03:45]} Rxc7 {[%emt 0:00:07]} 18. Bg2 {[%emt 0:03:46]} Nc8 {[%emt 0:03:18]} 19. Rhe1 {[%emt 0:08:48]} O-O {[%emt 0:03:04]} 20. Rd3 {[%emt 0:10:54]} Nd6 {[%emt 0:01:41]} 21. Kb1 {[%emt 0:01:29]} Rd8 {[%emt 0:12:32]} 22. c3 {[%emt 0:07:43]} Nb8 {[%emt 0:10:45]} 23. Nc5 {[%emt 0:05:04]} Nd7 {[%emt 0:00:33]} 24. Nxd7 {[%emt 0:00:56]} Rdxd7 {[%emt 0:00:48]} 25. f3 {[%emt 0:00:57]} Rc8 {[%emt 0:00:16]} 1/2-1/2

[Event "HUN-ch U8-U18 2019"]
[Site "Balatonlelle"]
[Date "2019.06.25"]
[Round "6.17"]
[White "Tancsa, Tamas"]
[Black "Szikszai, Bertalan"]
[Result "1-0"]
[ECO "B90"]
[WhiteElo "2158"]
[BlackElo "1896"]
[Annotator "NA"]
[PlyCount "75"]
[EventDate "2019.06.21"]
[EventType "swiss"]
[EventCountry "HUN"]
[SourceTitle "playchess.com"]
[Source "ChessBase"]
[SourceQuality "1"]
[TimeControl "40/5400+30:1800+30"]

1. e4 {[%emt 0:00:01]} c5 {[%emt 0:00:06]} 2. Nf3 {[%emt 0:00:15]} d6 {[%emt 0:00:05]} 3. d4 {[%emt 0:00:13]} cxd4 {[%emt 0:00:05]} 4. Nxd4 {[%emt 0:00:09]} Nf6 {[%emt 0:00:05]} 5. Nc3 {[%emt 0:00:10]} a6 {[%emt 0:00:07]} 6. f3 {[%emt 0:00:06]} e5 {[%emt 0:00:09]} 7. Nb3 {[%emt 0:00:04]} Be6 {[%emt 0:00:07]} 8. Be3 {[%emt 0:00:05]} h5 {[%emt 0:00:24]} 9. Nd5 {[%emt 0:00:26]} Bxd5 {[%emt 0:00:14]} 10. exd5 {[%emt 0:00:07]} Nbd7 {[%emt 0:00:15]} 11. Qd2 {[%emt 0:00:08]} g6 {[%emt 0:00:12]} 12. Be2 {[%emt 0:00:02]} Bg7 {[%emt 0:02:40]} 13. O-O {[%emt 0:00:07]} O-O {[%emt 0:04:07]} 14. Rac1 {[%emt 0:00:04]} Rc8 {[%emt 0:01:38]} 15. c4 {[%emt 0:00:28]} Re8 {[%emt 0:02:11]} 16. Na1 {[%emt 0:00:35]} Qe7 {[%emt 0:08:46]} 17. b4 {[%emt 0:03:10]} Bf8 {[%emt 0:06:39]} 18. Nb3 {[%emt 0:01:05]} Nh7 {[%emt 0:11:56]} 19. c5 {[%emt 0:02:23]} Nb8 {[%emt 0:07:00]} 20. Na5 {[%emt 0:02:20]} dxc5 {[%emt 0:07:31]} 21. bxc5 {[%emt 0:01:11]} Qd7 {[%emt 0:01:21]} 22. d6 {[%emt 0:04:22]} Nc6 {[%emt 0:04:16]} 23. Nc4 {[%emt 0:01:21]} Rcd8 {[%emt 0:01:34]} 24. Nb6 {[%emt 0:01:34]} Qf5 {[%emt 0:00:41]} 25. Bd3 {[%emt 0:00:07]} Qe6 {[%emt 0:02:02]} 26. Bc4 {[%emt 0:01:48]} Qf5 {[%emt 0:00:50]} 27. Nd5 {[%emt 0:01:42]} Qc8 {[%emt 0:07:56]} 28. Bg5 {[%emt 0:01:59]} Nd4 {[%emt 0:03:58]} 29. Bxd8 {[%emt 0:02:06]} Qxd8 {[%emt 0:00:22]} 30. Nc7 {[%emt 0:03:47]} Bxd6 {[%emt 0:03:03]} 31. cxd6 {[%emt 0:04:00]} Qxd6 {[%emt 0:00:15]} 32. Nd5 {[%emt 0:03:03]} Rc8 {[%emt 0:01:22]} 33. Qb4 {[%emt 0:02:04]} Rc5 {[%emt 0:03:13]} 34. Qxb7 {[%emt 0:00:52]} Ng5 {[%emt 0:02:16]} 35. Qe7 {[%emt 0:04:44]} Rxd5 {[%emt 0:03:20]} 36. Qxg5 {[%emt 0:00:13]} Rc5 {[%emt 0:00:18]} 37. f4 {[%emt 0:00:57]} Qc7 {[%emt 0:01:48]} 38. Qxg6+ {[%emt 0:00:34]} 1-0

[Event "HUN-ch U8-U18 2019"]
[Site "Balatonlelle"]
[Date "2019.06.25"]
[Round "6.17"]
[White "Pogany, Zsombor"]
[Black "Miszler, Levente"]
[Result "1/2-1/2"]
[ECO "A01"]
[WhiteElo "2121"]
[BlackElo "2041"]
[Annotator "NA"]
[PlyCount "34"]
[EventDate "2019.06.21"]
[EventType "swiss"]
[EventCountry "HUN"]
[SourceTitle "playchess.com"]
[Source "ChessBase"]
[SourceQuality "1"]
[TimeControl "40/5400+30:1800+30"]

1. b3 {[%emt 0:00:11]} e5 {[%emt 0:00:12]} 2. Bb2 {[%emt 0:00:00]} Nc6 {[%emt 0:00:13]} 3. e3 {[%emt 0:00:01]} g6 {[%emt 0:00:12]} 4. Nf3 {[%emt 0:02:17]} Bg7 {[%emt 0:00:08]} 5. Bb5 {[%emt 0:00:11]} Nge7 {[%emt 0:00:09]} 6. e4 {[%emt 0:03:11]} a6 {[%emt 0:02:57]} 7. Bxc6 {[%emt 0:02:29]} Nxc6 {[%emt 0:00:44]} 8. d4 {[%emt 0:04:48]} exd4 {[%emt 0:16:05]} 9. Nxd4 {[%emt 0:00:19]} Qh4 {[%emt 0:01:14]} 10. O-O {[%emt 0:02:26]} Nxd4 {[%emt 0:03:42]} 11. Bxd4 {[%emt 0:00:14]} O-O {[%emt 0:00:34]} 12. Bxg7 {[%emt 0:00:29]} Kxg7 {[%emt 0:00:07]} 13. Re1 {[%emt 0:01:32]} d6 {[%emt 0:01:41]} 14. Nc3 {[%emt 0:01:11]} Be6 {[%emt 0:07:03]} 15. Nd5 {[%emt 0:03:08]} Bxd5 {[%emt 0:02:41]} 16. Qxd5 {[%emt 0:00:39]} Rab8 {[%emt 0:01:15]} 17. g3 {[%emt 0:06:23]} Qf6 1/2-1/2

[Event "HUN-ch U8-U18 2019"]
[Site "Balatonlelle"]
[Date "2019.06.25"]
[Round "6.18"]
[White "Vodila, Martin Botond"]
[Black "Hatala, Csaba Laszlo"]
[Result "1-0"]
[ECO "B34"]
[WhiteElo "2243"]
[BlackElo "1958"]
[Annotator "ChessBase"]
[PlyCount "103"]
[EventDate "2019.06.21"]
[EventType "swiss"]
[EventCountry "HUN"]
[SourceTitle "playchess.com"]
[Source "ChessBase"]
[SourceQuality "1"]
[TimeControl "40/5400+30:1800+30"]

1. e4 {[%emt 0:05:14]} c5 {[%emt 0:00:08]} 2. Nf3 {[%emt 0:00:07]} Nc6 {[%emt 0:00:08]} 3. d4 {[%emt 0:01:38]} cxd4 {[%emt 0:00:08]} 4. Nxd4 {[%emt 0:00:06]} g6 {[%emt 0:00:08]} 5. Nxc6 {[%emt 0:03:43]} bxc6 {[%emt 0:01:07]} 6. Qd4 {[%emt 0:00:42]} Nf6 {[%emt 0:00:24]} 7. e5 {[%emt 0:00:57]} Nd5 {[%emt 0:00:18]} 8. Bc4 {[%emt 0:03:50]} Qb6 {[%emt 0:04:55]} 9. Qxb6 {[%emt 0:01:27]} Nxb6 {[%emt 0:01:42]} 10. Bb3 {[%emt 0:01:09]} Bg7 {[%emt 0:00:30]} 11. f4 {[%emt 0:00:23]} d6 {[%emt 0:02:40]} 12. exd6 {[%emt 0:03:35]} exd6 {[%emt 0:00:29]} 13. O-O {[%emt 0:00:09]} O-O {[%emt 0:00:23]} 14. c3 {[%emt 0:00:16]} Be6 {[%emt 0:02:21]} 15. Be3 {[%emt 0:04:12]} Rfe8 {[%emt 0:02:14]} 16. Kf2 {[%emt 0:11:12]} f5 {[%emt 0:08:38]} 17. Bxb6 {[%emt 0:04:06]} axb6 {[%emt 0:00:10]} 18. Nd2 {[%emt 0:00:20]} b5 {[%emt 0:06:40]} 19. Rfe1 {[%emt 0:16:50]} Kf7 {[%emt 0:01:56]} 20. Nf3 {[%emt 0:04:49]} Bf6 {[%emt 0:01:54]} 21. Red1 {[%emt 0:03:41]} Bxb3 {[%emt 0:05:55]} 22. axb3 {[%emt 0:00:07]} d5 {[%emt 0:00:20]} 23. b4 {[%emt 0:01:32]} Reb8 {[%emt 0:07:12]} 24. g3 {[%emt 0:00:29]} h6 {[%emt 0:02:53]} 25. h4 {[%emt 0:00:52]} Kg7 {[%emt 0:12:37]} 26. Ke3 {[%emt 0:01:46]} Kf7 {[%emt 0:05:24]} 27. Kd3 {[%emt 0:00:59]} Rxa1 {[%emt 0:05:17]} 28. Rxa1 {[%emt 0:00:07]} Re8 {[%emt 0:00:27]} 29. Ra6 {[%emt 0:01:37]} Re6 {[%emt 0:00:58]} 30. Ra7+ {[%emt 0:03:06]} Re7 {[%emt 0:00:56]} 31. Ra8 {[%emt 0:08:14]} Re6 {[%emt 0:17:03]} 32. Rc8 {[%emt 0:00:36]} Ke7 {[%emt 0:03:14]} 33. Rc7+ {[%emt 0:06:15]} Kd6 {[%emt 0:01:21]} 34. Rh7 {[%emt 0:00:10]} h5 {[%emt 0:01:17]} 35. Ra7 {[%emt 0:02:21]} Re7 {[%emt 0:01:33]} 36. Rxe7 {[%emt 0:04:51]} Kxe7 {[%emt 0:00:09]} 37. Ne5 {[%emt 0:01:22]} Bxe5 {[%emt 0:00:56]} 38. fxe5 {[%emt 0:00:01]} Ke6 {[%emt 0:02:08]} 39. Kd4 {[%emt 0:00:05]} Ke7 {[%emt 0:02:08]} 40. Ke3 {[%emt 0:00:00]} Kf8 {[%emt 0:00:00]} 41. Kf4 {[%emt 0:00:32]} Ke7 {[%emt 0:07:26]} 42. Kg5 {[%emt 0:01:24]} Kf7 {[%emt 0:00:13]} 43. Kh6 {[%emt 0:00:15]} Ke6 {[%emt 0:00:35]} 44. Kxg6 {[%emt 0:00:08]} Kxe5 {[%emt 0:00:06]} 45. Kxh5 {[%emt 0:00:09]} f4 {[%emt 0:00:08]} 46. gxf4+ {[%emt 0:00:07]} Kxf4 {[%emt 0:00:06]} 47. Kg6 {[%emt 0:00:04]} Ke4 {[%emt 0:04:21]} 48. h5 {[%emt 0:00:06]} d4 {[%emt 0:00:52]} 49. cxd4 {[%emt 0:00:06]} Kxd4 {[%emt 0:00:07]} 50. h6 {[%emt 0:00:05]} Kc4 {[%emt 0:00:06]} 51. h7 {[%emt 0:00:06]} Kxb4 {[%emt 0:00:05]} 52. h8=Q {[%emt 0:00:08]} 1-0

[Event "HUN-ch U8-U18 2019"]
[Site "Balatonlelle"]
[Date "2019.06.25"]
[Round "6.18"]
[White "Tran, David"]
[Black "Palczert, Matyas"]
[Result "1-0"]
[ECO "B40"]
[WhiteElo "2078"]
[BlackElo "2007"]
[Annotator "NA"]
[PlyCount "55"]
[EventDate "2019.06.21"]
[EventType "swiss"]
[EventCountry "HUN"]
[SourceTitle "playchess.com"]
[Source "ChessBase"]
[SourceQuality "1"]
[TimeControl "40/5400+30:1800+30"]

1. e4 {[%emt 0:00:03]} c5 {[%emt 0:00:07]} 2. Nf3 {[%emt 0:00:05]} e6 {[%emt 0:00:06]} 3. d3 {[%emt 0:01:02]} d5 {[%emt 0:01:19]} 4. Nbd2 {[%emt 0:00:12]} Nc6 {[%emt 0:00:59]} 5. g3 {[%emt 0:00:41]} Nf6 {[%emt 0:01:24]} 6. Bg2 {[%emt 0:00:30]} Be7 {[%emt 0:00:53]} 7. O-O {[%emt 0:00:14]} O-O {[%emt 0:01:02]} 8. e5 {[%emt 0:00:44]} Nd7 {[%emt 0:00:37]} 9. Re1 {[%emt 0:00:04]} Qc7 {[%emt 0:01:54]} 10. Qe2 {[%emt 0:01:04]} b5 {[%emt 0:01:35]} 11. Nf1 {[%emt 0:01:13]} Bb7 {[%emt 0:00:50]} 12. h4 {[%emt 0:00:37]} Rfc8 {[%emt 0:01:11]} 13. h5 {[%emt 0:01:01]} h6 {[%emt 0:02:13]} 14. Bf4 {[%emt 0:01:24]} Qd8 {[%emt 0:02:18]} 15. N1h2 {[%emt 0:03:42]} a5 {[%emt 0:02:11]} 16. Ng4 {[%emt 0:05:58]} Bf8 {[%emt 0:01:02]} 17. Qd2 {[%emt 0:03:46]} Kh7 {[%emt 0:05:44]} 18. Nh4 {[%emt 0:08:20]} Be7 {[%emt 0:13:18]} 19. Nf3 {[%emt 0:11:53]} Bf8 {[%emt 0:01:21]} 20. Nh4 {[%emt 0:02:36]} b4 {[%emt 0:05:25]} 21. c4 {[%emt 0:00:27]} bxc3 {[%emt 0:01:58]} 22. bxc3 {[%emt 0:00:08]} Be7 {[%emt 0:07:58]} 23. Bxh6 {[%emt 0:00:36]} Bxh4 {[%emt 0:01:15]} 24. gxh4 {[%emt 0:00:08]} gxh6 {[%emt 0:10:33]} 25. Qxh6+ {[%emt 0:00:10]} Kg8 {[%emt 0:00:06]} 26. Re3 {[%emt 0:00:31]} Qf8 {[%emt 0:02:13]} 27. Nf6+ {[%emt 0:00:12]} Nxf6 {[%emt 0:00:17]} 28. Rg3+ {[%emt 0:00:04]} 1-0

[Event "HUN-ch U8-U18 2019"]
[Site "Balatonlelle"]
[Date "2019.06.25"]
[Round "6.19"]
[White "Herczeg, Marcell"]
[Black "Konyves, Almos"]
[Result "0-1"]
[ECO "B84"]
[WhiteElo "1783"]
[BlackElo "2125"]
[Annotator "NA"]
[PlyCount "64"]
[EventDate "2019.06.21"]
[EventType "swiss"]
[EventCountry "HUN"]
[SourceTitle "playchess.com"]
[Source "ChessBase"]
[SourceQuality "1"]
[TimeControl "40/5400+30:1800+30"]

1. e4 {[%emt 0:00:12]} c5 {[%emt 0:00:04]} 2. Nf3 {[%emt 0:00:35]} d6 {[%emt 0:00:07]} 3. d4 {[%emt 0:00:38]} cxd4 {[%emt 0:00:05]} 4. Nxd4 {[%emt 0:00:53]} Nf6 {[%emt 0:00:06]} 5. Nc3 {[%emt 0:00:46]} a6 {[%emt 0:00:06]} 6. Be2 {[%emt 0:06:41]} e6 {[%emt 0:00:07]} 7. Be3 {[%emt 0:03:32]} Be7 {[%emt 0:00:29]} 8. Qd2 {[%emt 0:02:31]} Qc7 {[%emt 0:00:36]} 9. O-O {[%emt 0:02:11]} Nbd7 {[%emt 0:03:40]} 10. f4 {[%emt 0:02:54]} b5 {[%emt 0:00:32]} 11. Bf3 {[%emt 0:08:02]} Bb7 {[%emt 0:01:36]} 12. f5 {[%emt 0:03:18]} e5 {[%emt 0:00:55]} 13. Nde2 {[%emt 0:01:32]} b4 14. Nd5 {[%emt 0:00:38]} Bxd5 {[%emt 0:00:13]} 15. exd5 {[%emt 0:01:47]} e4 {[%emt 0:00:05]} 16. Bxe4 {[%emt 0:01:16]} Nxe4 {[%emt 0:00:05]} 17. Qxb4 {[%emt 0:00:47]} Nef6 {[%emt 0:00:19]} 18. c4 {[%emt 0:00:53]} O-O {[%emt 0:00:39]} 19. b3 {[%emt 0:00:41]} Rab8 {[%emt 0:02:54]} 20. Qe1 {[%emt 0:00:49]} Ng4 {[%emt 0:05:04]} 21. Bd2 {[%emt 0:01:25]} Bf6 {[%emt 0:01:21]} 22. Rc1 {[%emt 0:01:36]} Rfe8 {[%emt 0:01:37]} 23. h3 {[%emt 0:02:06]} Nge5 {[%emt 0:08:23]} 24. Qg3 {[%emt 0:02:33]} Nc5 {[%emt 0:00:41]} 25. Bf4 {[%emt 0:03:40]} Ned3 {[%emt 0:11:05]} 26. Rc2 {[%emt 0:02:39]} Nb4 {[%emt 0:02:04]} 27. Bxd6 {[%emt 0:02:25]} Qc8 {[%emt 0:02:51]} 28. Rcc1 {[%emt 0:02:06]} Ne4 {[%emt 0:00:46]} 29. Qg4 {[%emt 0:01:15]} Nxd6 {[%emt 0:00:08]} 30. Nf4 {[%emt 0:00:43]} Re4 {[%emt 0:06:18]} 31. a3 {[%emt 0:00:39]} Nd3 {[%emt 0:00:25]} 32. Rcd1 {[%emt 0:01:34]} Qc5+ {[%emt 0:00:32]} 0-1

[Event "HUN-ch U8-U18 2019"]
[Site "Balatonlelle"]
[Date "2019.06.25"]
[Round "6.19"]
[White "Monduk, Ferenc"]
[Black "Bohus, Adam"]
[Result "0-1"]
[ECO "D21"]
[WhiteElo "1717"]
[BlackElo "2196"]
[Annotator "ChessBase"]
[PlyCount "92"]
[EventDate "2019.06.21"]
[EventType "swiss"]
[EventCountry "HUN"]
[SourceTitle "playchess.com"]
[Source "ChessBase"]
[SourceQuality "1"]
[TimeControl "40/5400+30:1800+30"]

1. d4 {[%emt 0:00:01]} d5 {[%emt 0:00:13]} 2. c4 {[%emt 0:00:05]} dxc4 {[%emt 0:00:07]} 3. Nf3 {[%emt 0:00:12]} a6 {[%emt 0:00:20]} 4. a4 {[%emt 0:00:28]} Nf6 {[%emt 0:00:20]} 5. e3 {[%emt 0:00:17]} e6 {[%emt 0:01:11]} 6. Bxc4 {[%emt 0:00:24]} c5 {[%emt 0:00:09]} 7. O-O {[%emt 0:00:33]} Nc6 {[%emt 0:00:05]} 8. dxc5 {[%emt 0:01:34]} Qc7 {[%emt 0:02:43]} 9. b3 {[%emt 0:04:39]} Bxc5 {[%emt 0:03:26]} 10. Bb2 {[%emt 0:00:37]} Be7 {[%emt 0:11:34]} 11. Nbd2 {[%emt 0:08:24]} O-O {[%emt 0:00:43]} 12. Rc1 {[%emt 0:03:05]} Rd8 {[%emt 0:02:48]} 13. Qe2 {[%emt 0:02:48]} h6 {[%emt 0:12:51]} 14. h3 {[%emt 0:06:59]} Bd7 {[%emt 0:07:32]} 15. Bd3 {[%emt 0:04:49]} Qb8 {[%emt 0:10:54]} 16. Nc4 {[%emt 0:05:09]} b5 {[%emt 0:02:10]} 17. Nce5 {[%emt 0:05:05]} Nb4 {[%emt 0:06:35]} 18. Nxd7 {[%emt 0:14:05]} Rxd7 {[%emt 0:00:58]} 19. Bb1 {[%emt 0:05:31]} bxa4 {[%emt 0:05:20]} 20. bxa4 {[%emt 0:01:56]} Qd8 {[%emt 0:00:07]} 21. Bd4 {[%emt 0:05:29]} Qa5 {[%emt 0:16:08]} 22. Ne5 {[%emt 0:03:55]} Rdd8 {[%emt 0:00:13]} 23. Nc4 {[%emt 0:05:23]} Qg5 {[%emt 0:00:05]} 24. Ne5 {[%emt 0:01:36]} Rac8 {[%emt 0:05:24]} 25. Nd3 {[%emt 0:03:17]} Rxc1 {[%emt 0:05:00]} 26. Nxc1 {[%emt 0:03:29]} Qa5 {[%emt 0:02:26]} 27. Bc2 {[%emt 0:03:16]} Rc8 {[%emt 0:01:56]} 28. Bb3 {[%emt 0:00:55]} Nbd5 {[%emt 0:00:56]} 29. Nd3 {[%emt 0:02:34]} Nc3 {[%emt 0:01:10]} 30. Qb2 {[%emt 0:01:10]} Nxa4 {[%emt 0:01:03]} 31. Bxa4 {[%emt 0:00:31]} Qxa4 {[%emt 0:00:02]} 32. Qb7 {[%emt 0:00:06]} Re8 {[%emt 0:00:55]} 33. Ne5 {[%emt 0:01:51]} Qb5 {[%emt 0:00:30]} 34. Qxb5 {[%emt 0:00:24]} axb5 {[%emt 0:00:02]} 35. Rb1 {[%emt 0:00:07]} b4 {[%emt 0:00:43]} 36. Nc6 {[%emt 0:00:25]} Bd6 {[%emt 0:00:01]} 37. g3 {[%emt 0:03:23]} Rc8 {[%emt 0:00:52]} 38. Na5 {[%emt 0:00:13]} Ne4 {[%emt 0:00:37]} 39. Nb3 {[%emt 0:03:10]} e5 {[%emt 0:00:43]} 40. Bb6 {[%emt 0:00:00]} Rc2 {[%emt 0:00:00]} 41. Rd1 {[%emt 0:10:46]} Be7 {[%emt 0:06:24]} 42. Rf1 {[%emt 0:03:34]} f6 {[%emt 0:01:22]} 43. g4 {[%emt 0:00:37]} Kf7 {[%emt 0:03:45]} 44. f4 {[%emt 0:02:04]} Rc3 {[%emt 0:05:24]} 45. Na5 {[%emt 0:01:00]} exf4 {[%emt 0:00:18]} 46. exf4 {[%emt 0:02:58]} Rxh3 {[%emt 0:01:35]} 0-1

[Event "HUN-ch U8-U18 2019"]
[Site "Balatonlelle"]
[Date "2019.06.25"]
[Round "6.20"]
[White "Pesti, Mate"]
[Black "Kresz, Adam"]
[Result "1/2-1/2"]
[ECO "C02"]
[WhiteElo "1925"]
[BlackElo "1949"]
[Annotator "NA"]
[PlyCount "41"]
[EventDate "2019.06.21"]
[EventType "swiss"]
[EventCountry "HUN"]
[SourceTitle "playchess.com"]
[Source "ChessBase"]
[SourceQuality "1"]
[TimeControl "40/5400+30:1800+30"]

1. e4 {[%emt 0:00:03]} e6 {[%emt 0:00:06]} 2. d4 {[%emt 0:00:08]} d5 {[%emt 0:00:06]} 3. e5 {[%emt 0:00:03]} c5 {[%emt 0:00:05]} 4. c3 {[%emt 0:00:04]} Nc6 {[%emt 0:00:04]} 5. Nf3 {[%emt 0:00:05]} Qb6 {[%emt 0:00:06]} 6. Bd3 {[%emt 0:00:07]} cxd4 {[%emt 0:00:09]} 7. cxd4 {[%emt 0:00:16]} Bd7 {[%emt 0:00:17]} 8. Bc2 {[%emt 0:08:56]} Nb4 {[%emt 0:00:22]} 9. O-O {[%emt 0:02:01]} Nxc2 {[%emt 0:09:17]} 10. Qxc2 {[%emt 0:00:47]} Rc8 {[%emt 0:01:37]} 11. Nc3 {[%emt 0:00:57]} Ne7 {[%emt 0:01:15]} 12. Rd1 {[%emt 0:05:49]} Qa6 {[%emt 0:12:21]} 13. Be3 {[%emt 0:16:00]} Nc6 {[%emt 0:07:49]} 14. Nd2 {[%emt 0:09:59]} Bb4 {[%emt 0:19:06]} 15. Nb3 {[%emt 0:09:53]} Na5 {[%emt 0:12:47]} 16. Nxa5 {[%emt 0:04:54]} Bxc3 {[%emt 0:00:16]} 17. Nxb7 {[%emt 0:06:31]} Ba4 {[%emt 0:16:01]} 18. Nd6+ {[%emt 0:12:39]} Kd7 {[%emt 0:00:07]} 19. Qd3 {[%emt 0:00:24]} Qxd3 {[%emt 0:03:00]} 20. Rxd3 {[%emt 0:00:48]} Bxb2 {[%emt 0:00:34]} 21. Nxc8 {[%emt 0:06:33]} 1/2-1/2